bitfinex/quotes_BTCUSD_20240727
["timestamp","ask_amount","ask_price","bid_price","bid_amount"]
[1722039715002,1.58635393,68063.0,68062.0,0.29785]
[1722039715215,1.43143083,68063.0,68062.0,0.29785]
[1722039715649,1.56333892,68063.0,68062.0,0.29785]
[1722039717061,1.85718392,68063.0,68062.0,0.29785]
[1722039717269,2.75974479,68063.0,68062.0,0.29785]
[1722039717468,2.82098313,68063.0,68062.0,0.23977061]
[1722039717718,2.82098313,68063.0,68062.0,0.18661007]
[1722039717869,3.06333843,68063.0,68062.0,0.18661007]
[1722039718527,2.99430418,68063.0,68062.0,0.18661007]
[1722039718742,2.93596522,68063.0,68062.0,0.18261007]
[1722039718940,2.84844308,68063.0,68062.0,0.18261007]
[1722039719322,2.85144308,68063.0,68062.0,0.18261007]
[1722039719518,2.8423816,68063.0,68062.0,0.18261007]
[1722039719856,2.8393816,68063.0,68062.0,0.18261007]
[1722039720063,2.8393816,68063.0,68062.0,0.18361007]
[1722039720263,2.8423816,68063.0,68062.0,0.18361007]
[1722039720828,2.99264117,68063.0,68062.0,0.18361007]
[1722039721405,2.9928962,68063.0,68062.0,0.18361007]
[1722039721568,2.93165786,68063.0,68062.0,0.18361007]
[1722039722785,2.9547201,68063.0,68062.0,0.18361007]
[1722039722996,2.9555601,68063.0,68062.0,0.18361007]
[1722039723429,2.93249786,68063.0,68062.0,0.18361007]
[1722039724364,2.93249786,68063.0,68062.0,6.1e-07]
[1722039724584,2.354412,68049.0,68048.0,0.000924]
[1722039724776,2.80601902,68049.0,68048.0,0.000924]
[1722039724989,2.75264519,68049.0,68048.0,0.000924]
[1722039725197,2.66757098,68049.0,68048.0,0.000924]
[1722039725692,2.33277098,68049.0,68048.0,0.000924]
[1722039725861,2.42457098,68049.0,68048.0,0.001924]
[1722039726067,2.33977098,68049.0,68048.0,0.001924]
[1722039726275,2.42357098,68049.0,68048.0,0.000924]
[1722039726650,2.45363652,68049.0,68048.0,0.001924]
[1722039727644,2.60389609,68049.0,68048.0,0.001924]
[1722039727868,2.60978809,68049.0,68048.0,0.001924]
[1722039729047,2.45952852,68049.0,68048.0,0.001924]
[1722039730526,2.56909751,68049.0,68048.0,0.001924]
[1722039731112,2.54603197,68049.0,68048.0,0.001924]
[1722039731514,2.43646298,68049.0,68048.0,0.001924]
[1722039732511,2.54603197,68049.0,68048.0,0.001924]
[1722039732716,2.54603197,68049.0,68047.0,1e-06]
[1722039732717,1.712035,68048.0,68047.0,1e-06]
[1722039732948,1.712035,68048.0,68034.0,0.0015542]
[1722039732949,0.584713,68025.0,68024.0,0.000924]
[1722039733308,0.584713,68025.0,68024.0,0.294934]
[1722039733309,1.280531,68025.0,68024.0,0.294934]
[1722039734151,1.279531,68025.0,68024.0,0.294934]
[1722039734332,1.30360032,68025.0,68024.0,0.294934]
[1722039734565,1.35001191,68025.0,68024.0,0.294934]
[1722039734772,1.280531,68025.0,68024.0,0.294934]
[1722039735307,1.279531,68025.0,68024.0,0.294934]
[1722039735532,1.32450069,68025.0,68024.0,0.294934]
[1722039735739,1.279531,68025.0,68024.0,0.294934]
[1722039736141,1.32300923,68025.0,68024.0,0.294934]
[1722039736346,1.25690923,68025.0,68024.0,0.294934]
[1722039736868,1.214431,68025.0,68024.0,0.294934]
[1722039737620,1.23750123,68025.0,68024.0,0.294934]
[1722039739203,1.214431,68025.0,68024.0,0.294934]
[1722039740997,1.214431,68025.0,68024.0,0.4044274]
[1722039740998,0.759022,68025.0,68024.0,0.4044274]
[1722039741168,0.759022,68025.0,68024.0,0.440234]
[1722039742495,0.465013,68025.0,68024.0,0.440234]
[1722039744485,0.001,68025.0,68024.0,0.881253]
[1722039744843,0.001,68025.0,68024.0,1.5658843]
[1722039744844,0.002,68025.0,68024.0,1.5658843]
[1722039746658,0.02506688,68025.0,68024.0,1.5658843]
[1722039746799,0.0477887,68033.0,68027.0,0.293998]
[1722039747007,0.1,68035.0,68027.0,0.293998]
[1722039747008,0.246983,68035.0,68029.0,0.0015542]
[1722039747212,0.246983,68035.0,68030.0,0.440983]
[1722039747213,0.04741253,68034.0,68030.0,0.440983]
[1722039747414,0.22312079,68031.0,68030.0,0.29399]
[1722039747615,0.12346623,68031.0,68030.0,0.29399]
[1722039747818,0.001,68031.0,68030.0,0.29399]
[1722039748095,0.04819731,68031.0,68030.0,0.29399]
[1722039748520,0.001,68031.0,68030.0,0.29399]
[1722039749243,0.19518831,68031.0,68030.0,0.29399]
[1722039749989,0.19518831,68031.0,68030.0,0.29499]
[1722039750190,0.0712648,68031.0,68030.0,0.29599]
[1722039750375,0.02406749,68031.0,68030.0,0.29599]
[1722039750581,0.17105849,68031.0,68030.0,0.29599]
[1722039750823,0.2182558,68031.0,68030.0,0.29599]
[1722039751202,0.19518831,68031.0,68030.0,0.29599]
[1722039751604,0.04819731,68031.0,68030.0,0.29599]
[1722039752163,0.07126098,68031.0,68030.0,0.29599]
[1722039752996,0.21825198,68031.0,68030.0,0.29599]
[1722039754083,0.07126098,68031.0,68030.0,0.29599]
[1722039754452,0.09432839,68031.0,68030.0,0.29599]
[1722039754612,0.24131939,68031.0,68030.0,0.29599]
[1722039754841,0.21825198,68031.0,68030.0,0.29599]
[1722039755052,0.27717698,68031.0,68030.0,0.29599]
[1722039756905,0.86514298,68031.0,68030.0,0.29599]
[1722039757113,0.61511992,68031.0,68030.0,0.29599]
[1722039757473,0.61514135,68031.0,68030.0,0.29599]
[1722039757677,0.57115998,68031.0,68030.0,0.29599]
[1722039758029,0.59422726,68031.0,68030.0,0.29599]
[1722039758428,0.66019932,68031.0,68030.0,0.29599]
[1722039758607,0.59422726,68031.0,68030.0,0.29599]
[1722039759009,0.66023749,68031.0,68030.0,0.29599]
[1722039759458,0.59422726,68031.0,68030.0,0.29599]
[1722039759664,0.68219001,68031.0,68030.0,0.29599]
[1722039760231,0.59422726,68031.0,68030.0,0.29599]
[1722039761551,0.59422726,68031.0,68030.0,0.519583]
[1722039761552,0.15225326,68031.0,68030.0,0.519583]
[1722039761768,0.09332826,68031.0,68030.0,0.9812992]
[1722039761978,0.09332826,68031.0,68030.0,1.2752862]
[1722039761979,0.02306367,68031.0,68030.0,1.2752862]
[1722039762152,0.02306367,68031.0,68030.0,1.69141894]
[1722039762596,0.02306367,68031.0,68030.0,1.5682732]
[1722039762997,0.02406367,68031.0,68030.0,1.5762732]
[1722039763200,0.02406367,68031.0,68030.0,1.5752732]
[1722039763405,0.02506367,68031.0,68030.0,1.5802732]
[1722039763586,0.02406367,68031.0,68030.0,1.5722732]
[1722039763866,0.02306367,68031.0,68030.0,1.5672732]
[1722039764067,0.02406367,68031.0,68030.0,1.5722732]
[1722039764215,0.02406367,68031.0,68030.0,1.5232732]
[1722039764817,0.04712874,68031.0,68030.0,1.5232732]
[1722039764998,0.04812874,68031.0,68030.0,1.5322732]
[1722039765207,0.04812874,68031.0,68030.0,1.5812732]
[1722039767185,0.04812874,68031.0,68030.0,1.5322732]
[1722039767516,0.04812874,68031.0,68030.0,1.5812732]
[1722039767729,0.04812874,68031.0,68030.0,1.5832732]
[1722039767929,0.02506367,68031.0,68030.0,1.5832732]
[1722039768291,0.02506367,68031.0,68030.0,1.5322732]
[1722039768572,0.002,68031.0,68030.0,1.5322732]
[1722039769206,0.002,68031.0,68030.0,1.6170732]
[1722039771272,0.02506447,68031.0,68030.0,1.6170732]
[1722039771478,0.002,68031.0,68030.0,1.6170732]
[1722039774811,0.02506447,68031.0,68030.0,1.6170732]
[1722039780125,0.02506447,68031.0,68030.0,1.421744]
[1722039780535,0.02506447,68031.0,68030.0,1.336944]
[1722039781353,0.002,68031.0,68030.0,1.336944]
[1722039784519,0.002,68031.0,68030.0,1.421744]
[1722039785920,0.02506509,68031.0,68030.0,1.421744]
[1722039786387,0.002,68031.0,68030.0,1.421744]
[1722039788846,0.00284,68031.0,68030.0,1.421744]
[1722039790243,0.00284,68031.0,68030.0,1.57200357]
[1722039790515,0.02590518,68031.0,68030.0,1.57200357]
[1722039790752,0.04689053,68031.0,68030.0,1.57200357]
[1722039793068,0.04689774,68031.0,68030.0,1.57200357]
[1722039793511,0.06996292,68031.0,68030.0,1.57200357]
[1722039794527,0.06996292,68031.0,68030.0,1.421744]
[1722039797002,0.06996292,68031.0,68030.0,1.042957]
[1722039797204,0.21665827,68031.0,68030.0,1.042957]
[1722039797403,0.23868714,68031.0,68030.0,1.042957]
[1722039797791,0.15057165,68031.0,68030.0,1.042957]
[1722039798002,0.23871707,68031.0,68030.0,1.042957]
[1722039798578,0.23971707,68031.0,68030.0,1.042957]
[1722039798986,0.23871707,68031.0,68030.0,1.042957]
[1722039799393,0.15057165,68031.0,68030.0,1.042957]
[1722039801038,0.15157165,68031.0,68030.0,1.042957]
[1722039801616,0.12850647,68031.0,68030.0,1.042957]
[1722039803575,0.12750647,68031.0,68030.0,1.042957]
[1722039803725,0.04940647,68031.0,68030.0,1.042957]
[1722039803932,0.15863046,68031.0,68030.0,1.042957]
[1722039804507,0.15864568,68031.0,68030.0,1.042957]
[1722039804889,0.1817113,68031.0,68030.0,1.042957]
[1722039805321,0.15864568,68031.0,68030.0,1.042957]
[1722039805534,0.04840647,68031.0,68030.0,1.042957]
[1722039805721,0.00284,68031.0,68030.0,1.042957]
[1722039808795,0.02590545,68031.0,68030.0,1.042957]
[1722039808999,0.00284,68031.0,68030.0,1.042957]
[1722039809225,0.00384,68031.0,68030.0,1.042957]
[1722039810638,0.00284,68031.0,68030.0,1.042957]
[1722039810875,0.00384,68031.0,68030.0,1.042957]
[1722039811200,0.00384,68031.0,68030.0,0.30799]
[1722039811372,0.14294,68031.0,68030.0,0.454983]
[1722039811573,0.18850647,68031.0,68030.0,0.454983]
[1722039811981,0.18850647,68031.0,68030.0,0.30799]
[1722039812318,0.18750647,68031.0,68030.0,0.29899]
[1722039812463,0.21057218,68031.0,68030.0,0.30299]
[1722039812699,0.21057218,68031.0,68030.0,0.30899]
[1722039812700,0.21157218,68031.0,68030.0,0.30899]
[1722039812880,0.21057218,68031.0,68030.0,0.29999]
[1722039813084,0.21057218,68031.0,68030.0,0.30899]
[1722039813284,0.21157218,68031.0,68030.0,0.455983]
[1722039813738,0.15057218,68031.0,68030.0,0.74997]
[1722039815126,0.07147218,68031.0,68030.0,1.128757]
[1722039815329,0.18175195,68031.0,68030.0,1.3892655]
[1722039815522,0.07147218,68031.0,68030.0,1.7322525]
[1722039815724,0.02590571,68031.0,68030.0,1.7322525]
[1722039816003,0.02590571,68031.0,68030.0,1.8544065]
[1722039816257,0.02590571,68031.0,68030.0,1.85440624]
[1722039816400,0.07001515,68031.0,68030.0,1.85440624]
[1722039816612,0.07001515,68031.0,68030.0,2.85131893]
[1722039816613,0.02590571,68031.0,68030.0,2.85131893]
[1722039817043,0.02590571,68031.0,68030.0,2.85331893]
[1722039817672,0.00284,68031.0,68030.0,2.85331893]
[1722039818108,0.00284,68031.0,68030.0,2.84431893]
[1722039818109,0.00184,68031.0,68030.0,2.84431893]
[1722039818544,0.00284,68031.0,68030.0,2.85831893]
[1722039818737,0.00184,68031.0,68030.0,2.85231893]
[1722039818971,0.00284,68031.0,68030.0,2.86631893]
[1722039819215,0.00184,68031.0,68030.0,2.85231893]
[1722039819431,0.00184,68031.0,68030.0,2.85229136]
[1722039819598,0.00284,68031.0,68030.0,2.86629136]
[1722039822551,0.00284,68031.0,68030.0,2.78149137]
[1722039822751,0.00284,68031.0,68030.0,2.86629137]
[1722039823100,0.00284,68031.0,68030.0,2.61529137]
[1722039823439,0.00284,68031.0,68030.0,2.86629137]
[1722039823644,0.00284,68031.0,68030.0,2.2160363]
[1722039823857,0.00284,68031.0,68030.0,2.3028363]
[1722039825110,0.00284,68031.0,68030.0,2.3008363]
[1722039825744,0.00284,68031.0,68030.0,2.17871012]
[1722039825948,0.00284,68031.0,68030.0,2.30084923]
[1722039826455,0.00284,68031.0,68030.0,2.4531088]
[1722039828949,0.00284,68031.0,68030.0,2.45310801]
[1722039829124,0.00284,68031.0,68030.0,2.45110801]
[1722039833352,0.02590243,68031.0,68030.0,2.45110801]
[1722039835448,0.02590243,68031.0,68030.0,2.45110514]
[1722039838808,0.02590243,68031.0,68030.0,2.32896969]
[1722039839073,0.02590243,68031.0,68030.0,2.45110513]
[1722039841104,0.00284,68031.0,68030.0,2.45110513]
[1722039841329,0.00284,68031.0,68030.0,2.45110514]
[1722039841583,0.00250646,68031.0,68030.0,2.45110514]
[1722039842064,0.08000646,68031.0,68030.0,1.63201814]
[1722039842321,0.08000646,68031.0,68030.0,1.59468269]
[1722039843022,0.07800646,68031.0,68030.0,1.56668269]
[1722039843263,0.07800646,68031.0,68030.0,1.58068269]
[1722039843505,0.08000646,68031.0,68030.0,1.59468269]
[1722039843727,0.07900646,68031.0,68030.0,1.58068269]
[1722039843928,0.00050646,68031.0,68030.0,1.56668269]
[1722039844134,0.00150646,68031.0,68030.0,1.90063138]
[1722039844346,0.00150646,68031.0,68030.0,1.77848269]
[1722039844347,0.02457025,68031.0,68030.0,1.77848269]
[1722039844575,0.02457025,68031.0,68030.0,1.9006233]
[1722039844993,0.02557025,68031.0,68030.0,1.9146233]
[1722039846917,0.02557025,68031.0,68030.0,2.2086103]
[1722039847117,0.02557025,68031.0,68030.0,2.4586103]
[1722039847564,0.00250646,68031.0,68030.0,2.45860696]
[1722039849592,0.00250646,68031.0,68030.0,2.37610696]
[1722039849770,0.00250646,68031.0,68030.0,2.30980696]
[1722039850560,0.00250646,68031.0,68030.0,2.31180696]
[1722039850765,0.00250646,68031.0,68030.0,2.31180449]
[1722039853050,0.00250646,68031.0,68030.0,2.30980449]
[1722039854015,0.14110646,68031.0,68030.0,1.7168175]
[1722039854775,0.14110646,68031.0,68030.0,1.7677415]
[1722039854980,0.00250646,68031.0,68030.0,2.3107285]
[1722039855251,0.02557025,68031.0,68030.0,2.3107285]
[1722039856561,0.02557025,68031.0,68030.0,2.0167415]
[1722039857144,0.00250646,68031.0,68030.0,2.31073366]
[1722039858665,0.00250646,68031.0,68030.0,1.76674666]
[1722039858870,0.00250646,68031.0,68030.0,1.71774666]
[1722039859770,0.00250646,68031.0,68030.0,1.76674666]
[1722039860375,0.00250646,68031.0,68030.0,1.76674841]
[1722039861104,0.00250646,68031.0,68030.0,1.71774841]
[1722039862142,0.00250646,68031.0,68030.0,1.76674841]
[1722039863709,0.00250646,68031.0,68030.0,1.76675083]
[1722039864529,0.00250646,68031.0,68030.0,1.71775083]
[1722039864806,0.00250646,68031.0,68030.0,1.71775084]
[1722039867347,0.04663504,68031.0,68030.0,1.71775084]
[1722039867549,0.06869933,68031.0,68030.0,1.71775084]
[1722039867750,0.09076362,68031.0,68030.0,1.71775084]
[1722039868240,0.11382733,68031.0,68030.0,1.71775084]
[1722039869280,0.09177486,68031.0,68030.0,1.71775084]
[1722039869942,0.23517486,68031.0,68030.0,0.89471727]
[1722039870146,0.23517486,68031.0,68030.0,0.763894]
[1722039870147,0.20512608,68031.0,68030.0,0.763894]
[1722039870519,0.16897017,68031.0,68030.0,1.057881]
[1722039870683,0.20436785,68031.0,68030.0,1.057881]
[1722039871302,0.18130414,68031.0,68030.0,1.057881]
[1722039871662,0.14590646,68031.0,68030.0,1.057881]
[1722039872474,0.25619183,68031.0,68030.0,1.057881]
[1722039873184,0.25519183,68031.0,68030.0,1.057881]
[1722039873583,0.14590646,68031.0,68030.0,1.057881]
[1722039873806,0.25517519,68031.0,68030.0,1.057881]
[1722039874482,0.14490646,68031.0,68030.0,1.057881]
[1722039874629,0.25617525,68031.0,68030.0,1.057881]
[1722039874836,0.14490646,68031.0,68030.0,1.057881]
[1722039875018,0.23311017,68031.0,68030.0,1.057881]
[1722039875421,0.14490646,68031.0,68030.0,1.057881]
[1722039876978,0.14590646,68031.0,68030.0,1.057881]
[1722039877176,0.14490646,68031.0,68030.0,1.057881]
[1722039877375,0.23409313,68031.0,68030.0,1.057881]
[1722039877851,0.25715773,68031.0,68030.0,1.057881]
[1722039878064,0.23409313,68031.0,68030.0,1.057881]
[1722039878270,0.14590646,68031.0,68030.0,0.322914]
[1722039878472,0.17851366,68031.0,68030.0,0.322914]
[1722039878675,0.17829034,68031.0,68030.0,0.322914]
[1722039879229,0.17729034,68031.0,68030.0,0.308914]
[1722039879434,0.32428134,68031.0,68030.0,0.308914]
[1722039879795,0.61826434,68031.0,68030.0,0.322914]
[1722039879998,0.99804734,68031.0,68030.0,0.322914]
[1722039880195,1.15328778,68031.0,68030.0,0.322914]
[1722039880455,1.02104734,68031.0,68030.0,0.322914]
[1722039880655,1.02004734,68031.0,68030.0,0.308914]
[1722039880927,0.93524734,68031.0,68030.0,0.308914]
[1722039881231,0.93524734,68031.0,68030.0,0.317914]
[1722039881232,0.93624734,68031.0,68030.0,0.317914]
[1722039881417,1.17629246,68031.0,68030.0,0.317914]
[1722039881645,1.04311399,68031.0,68030.0,0.303914]
[1722039881933,1.04311399,68031.0,68030.0,0.311914]
[1722039881934,1.04411399,68031.0,68030.0,0.311914]
[1722039882140,0.66533099,68031.0,68030.0,0.3431978]
[1722039882506,0.50349399,68031.0,68030.0,0.3431978]
[1722039882702,0.31043634,68031.0,68030.0,0.7841778]
[1722039882939,0.17829034,68031.0,68030.0,0.7841778]
[1722039883287,0.17829034,68031.0,68030.0,0.4901908]
[1722039883459,0.17729034,68031.0,68030.0,0.4901908]
[1722039883658,0.17829034,68031.0,68030.0,0.4901908]
[1722039885291,0.28841634,68031.0,68030.0,0.4901908]
[1722039885498,0.31148331,68031.0,68030.0,0.4901908]
[1722039885693,0.45847431,68031.0,68030.0,0.311914]
[1722039885951,1.02111431,68031.0,68030.0,0.311914]
[1722039886761,0.93631431,68031.0,68030.0,0.311914]
[1722039887464,0.93631431,68031.0,68030.0,0.31187386]
[1722039887977,0.64233131,68031.0,68030.0,0.31187386]
[1722039890897,0.61926434,68031.0,68030.0,0.31187386]
[1722039892061,0.67818934,68031.0,68030.0,0.31187386]
[1722039892633,0.97217234,68031.0,68030.0,0.31187386]
[1722039892751,0.97117234,68031.0,68030.0,0.31187386]
[1722039892956,0.97217234,68031.0,68030.0,0.31187386]
[1722039894270,0.99523975,68031.0,68030.0,0.31187386]
[1722039894471,0.97217234,68031.0,68030.0,0.31187386]
[1722039895071,0.99517234,68031.0,68030.0,0.31187386]
[1722039897640,1.01823982,68031.0,68030.0,0.31187386]
[1722039900600,1.07434629,68031.0,68030.0,0.31187386]
[1722039901070,1.0743666,68031.0,68030.0,0.31187386]
[1722039902276,1.07462525,68031.0,68030.0,0.31187386]
[1722039902577,1.01823982,68031.0,68030.0,0.31187386]
[1722039903173,0.99517234,68031.0,68030.0,0.31187386]
[1722039905244,1.0515699,68031.0,68030.0,0.31187386]
[1722039905442,0.99517234,68031.0,68030.0,0.31187386]
[1722039905647,1.05156991,68031.0,68030.0,0.31187386]
[1722039906520,1.07463739,68031.0,68030.0,0.31187386]
[1722039906715,1.05156991,68031.0,68030.0,0.31187386]
[1722039907120,1.05121887,68031.0,68030.0,0.31187386]
[1722039908963,1.18339506,68031.0,68030.0,0.31187386]
[1722039910080,1.20646254,68031.0,68030.0,0.31187386]
[1722039910194,1.36826935,68031.0,68030.0,0.31187386]
[1722039910396,1.66826935,68031.0,68030.0,0.31187386]
[1722039911653,1.64520187,68031.0,68030.0,0.31187386]
[1722039912224,1.64511419,68031.0,68030.0,0.31187386]
[1722039913174,1.64511419,68031.0,68030.0,0.25287386]
[1722039915078,1.66818197,68031.0,68030.0,0.25287386]
[1722039915295,1.64511419,68031.0,68030.0,0.25287386]
[1722039918263,1.74511419,68031.0,68030.0,0.25287386]
[1722039918750,1.71222356,68031.0,68030.0,0.25287386]
[1722039918969,1.76737257,68031.0,68030.0,0.25287386]
[1722039919095,1.76737257,68031.0,68030.0,0.24487386]
[1722039919300,1.74330435,68031.0,68030.0,0.23587386]
[1722039919497,1.74330435,68031.0,68030.0,0.23887386]
[1722039919701,1.74330435,68031.0,68030.0,0.24187386]
[1722039922807,1.76637266,68031.0,68030.0,0.24187386]
[1722039924856,1.76675973,68031.0,68030.0,0.24187386]
[1722039925480,2.19915273,68031.0,68030.0,0.24187386]
[1722039925728,2.44915273,68031.0,68030.0,0.24187386]
[1722039926867,2.44915273,68031.0,68030.0,0.23887386]
[1722039927071,2.74313573,68031.0,68030.0,0.23887386]
[1722039927201,3.2686874,68031.0,68030.0,0.22742796]
[1722039927398,2.99161097,68031.0,68030.0,0.18367927]
[1722039927597,3.14554346,68031.0,68030.0,0.18467927]
[1722039928369,3.13754346,68031.0,68030.0,0.18367927]
[1722039928544,3.13754346,68031.0,68030.0,0.18467927]
[1722039928545,3.14554346,68031.0,68030.0,0.18467927]
[1722039928757,3.17129139,68031.0,68030.0,0.18467927]
[1722039929291,3.08709059,68031.0,68030.0,0.18467927]
[1722039930667,3.11016322,68031.0,68030.0,0.18467927]
[1722039930867,3.11272585,68031.0,68030.0,0.18467927]
[1722039931848,3.08965322,68031.0,68030.0,0.18467927]
[1722039932200,3.08905417,68031.0,68030.0,0.18467927]
[1722039936500,3.1121267,68031.0,68030.0,0.18467927]
[1722039938746,3.11190133,68031.0,68030.0,0.18467927]
[1722039942078,3.11344249,68031.0,68030.0,0.18467927]
[1722039944239,2.91815354,68031.0,68030.0,0.18467927]
[1722039944370,3.09011876,68031.0,68030.0,0.18467927]
[1722039945452,3.09018691,68031.0,68030.0,0.18467927]
[1722039948258,2.64594434,68031.0,68030.0,0.18467927]
[1722039948669,2.64600119,68031.0,68030.0,0.18467927]
[1722039948875,2.6690736,68031.0,68030.0,0.18467927]
[1722039949063,2.64600119,68031.0,68030.0,0.18467927]
[1722039951923,2.49698322,68031.0,68030.0,0.18467927]
[1722039952061,2.61990087,68031.0,68030.0,0.18467927]
[1722039952264,2.60800087,68031.0,68030.0,0.18467927]
[1722039953165,2.58492862,68031.0,68030.0,0.18467927]
[1722039953572,2.53392862,68031.0,68030.0,0.18467927]
[1722039953883,2.58492862,68031.0,68030.0,0.18467927]
[1722039955485,2.58526487,68031.0,68030.0,0.18467927]
[1722039955836,2.58069335,68031.0,68030.0,0.18467927]
[1722039956802,1.94589335,68031.0,68030.0,0.18467927]
[1722039956993,2.58069335,68031.0,68030.0,0.18467927]
[1722039957364,2.33069335,68031.0,68030.0,0.18467927]
[1722039958168,2.58069335,68031.0,68030.0,0.18467927]
[1722039958354,2.33069335,68031.0,68030.0,0.18467927]
[1722039958555,2.58002848,68031.0,68030.0,0.18467927]
[1722039960431,2.60310049,68031.0,68030.0,0.18467927]
[1722039961100,2.43051146,68031.0,68030.0,0.18467927]
[1722039961237,2.57977496,68031.0,68030.0,0.18467927]
[1722039961802,2.32977496,68031.0,68030.0,0.18467927]
[1722039962013,2.16447496,68031.0,68030.0,0.26677927]
[1722039962186,2.24927496,68031.0,68030.0,0.26677927]
[1722039962341,1.43208196,68031.0,68030.0,0.26677927]
[1722039962542,1.43208196,68031.0,68030.0,0.33327927]
[1722039962543,1.42851933,68031.0,68030.0,0.33327927]
[1722039962940,1.30551933,68031.0,68030.0,0.33327927]
[1722039963117,1.30651933,68031.0,68030.0,0.33327927]
[1722039963313,1.20386334,68031.0,68030.0,0.33327927]
[1722039963534,1.20286334,68031.0,68030.0,0.33327927]
[1722039964068,1.32586334,68031.0,68030.0,0.33327927]
[1722039964292,1.428014,68031.0,68030.0,0.33327927]
[1722039964498,1.4290124,68031.0,68030.0,0.33327927]
[1722039964736,1.45208216,68031.0,68030.0,0.33327927]
[1722039964949,1.82205173,68031.0,68030.0,0.18467927]
[1722039965158,2.13335173,68031.0,68030.0,0.18467927]
[1722039965359,2.72131773,68031.0,68030.0,0.11701234]
[1722039965565,2.65531108,68031.0,68030.0,0.10852498]
[1722039965746,2.36132808,68031.0,68030.0,0.10852498]
[1722039965966,2.27707516,68031.0,68030.0,0.10852498]
[1722039966166,2.57105816,68031.0,68030.0,0.10852498]
[1722039966386,2.65704476,68031.0,68030.0,0.04972698]
[1722039966593,1.330423,68025.0,68024.0,0.0024782]
[1722039966795,2.07588194,68025.0,68024.0,0.0024782]
[1722039967016,2.36989094,68025.0,68024.0,0.0024782]
[1722039967223,2.36989094,68025.0,68024.0,0.000924]
[1722039967342,2.642962,68025.0,68024.0,0.000924]
[1722039967554,2.64435349,68025.0,68024.0,0.000924]
[1722039967781,2.65635349,68025.0,68024.0,0.001924]
[1722039968474,2.66735349,68025.0,68024.0,0.002924]
[1722039969289,2.88440052,68025.0,68024.0,0.002924]
[1722039970368,3.03466009,68025.0,68024.0,0.002924]
[1722039970609,3.03466009,68025.0,68024.0,0.0044782]
[1722039970874,2.81761306,68025.0,68024.0,0.0044782]
[1722039971121,3.03472341,68025.0,68024.0,0.0044782]
[1722039971368,3.03472341,68025.0,68024.0,0.002924]
[1722039972081,3.03472341,68025.0,68024.0,0.0044782]
[1722039972313,2.66735349,68025.0,68024.0,0.0044782]
[1722039972483,2.66735349,68025.0,68024.0,0.002924]
[1722039973293,2.41735349,68025.0,68024.0,0.00394353]
[1722039973696,2.41735349,68025.0,68024.0,0.002924]
[1722039974166,2.41660741,68025.0,68024.0,0.002924]
[1722039974356,2.41660741,68025.0,68024.0,0.0044782]
[1722039974573,2.36660741,68025.0,68024.0,0.0865782]
[1722039974700,2.01947988,68025.0,68024.0,0.0865782]
[1722039974901,2.10427988,68025.0,68024.0,0.0865782]
[1722039975694,2.15427988,68025.0,68024.0,0.0865782]
[1722039975879,2.13120644,68025.0,68024.0,0.0865782]
[1722039976062,2.13120644,68025.0,68024.0,0.085024]
[1722039976278,2.13120644,68025.0,68024.0,0.0865782]
[1722039976473,2.13120644,68025.0,68024.0,0.085024]
[1722039976661,2.08120644,68025.0,68024.0,0.08625139]
[1722039976857,2.08120644,68025.0,68024.0,0.085024]
[1722039977056,2.08120644,68025.0,68024.0,0.08624295]
[1722039977281,2.08144955,68025.0,68024.0,0.08624295]
[1722039977679,2.08144955,68025.0,68024.0,0.085024]
[1722039978030,2.08144955,68025.0,68024.0,0.0865782]
[1722039978357,2.08144955,68025.0,68024.0,0.085024]
[1722039978986,2.10452248,68025.0,68024.0,0.085024]
[1722039979186,2.00168383,68025.0,68024.0,0.085024]
[1722039979387,2.10438923,68025.0,68024.0,0.0865782]
[1722039979820,2.10438923,68025.0,68024.0,0.085024]
[1722039979955,1.6081063,68025.0,68024.0,0.2117306]
[1722039980173,1.5902009,68025.0,68024.0,0.0865782]
[1722039980724,1.59021235,68025.0,68024.0,0.0865782]
[1722039981534,1.89021235,68025.0,68024.0,0.0865782]
[1722039981732,1.89021235,68025.0,68024.0,0.085024]
[1722039982092,1.89021235,68025.0,68024.0,0.08642017]
[1722039982296,1.89021235,68025.0,68024.0,0.085024]
[1722039982523,1.89021235,68025.0,68024.0,0.08641951]
[1722039983105,1.89021235,68025.0,68024.0,0.085024]
[1722039983322,1.91328516,68025.0,68024.0,0.0865782]
[1722039983996,1.84339526,68025.0,68024.0,0.085024]
[1722039984172,1.91318239,68025.0,68024.0,0.0865782]
[1722039984398,1.89010958,68025.0,68024.0,0.085024]
[1722039984616,1.29610058,68025.0,68024.0,0.085024]
[1722039984823,1.29610058,68025.0,68024.0,0.1501782]
[1722039985022,1.29610058,68025.0,68024.0,0.148624]
[1722039985200,1.29600882,68025.0,68024.0,0.148624]
[1722039986314,0.46657879,68025.0,68024.0,0.148624]
[1722039986514,0.46657879,68025.0,68024.0,0.2366573]
[1722039986515,0.34457879,68025.0,68024.0,0.2366573]
[1722039986696,0.49246108,68025.0,68024.0,0.148624]
[1722039986894,0.49246108,68025.0,68024.0,0.1501782]
[1722039987106,0.49246108,68025.0,68024.0,0.148624]
[1722039987300,0.33257879,68025.0,68024.0,0.1491782]
[1722039987500,0.48278576,68025.0,68024.0,0.1491782]
[1722039987731,0.5168567,68025.0,68024.0,0.29843777]
[1722039987934,0.5208567,68025.0,68024.0,0.29843777]
[1722039988092,0.59778576,68025.0,68024.0,0.29843777]
[1722039988304,0.4489044,68025.0,68024.0,0.29843777]
[1722039988819,0.6009084,68025.0,68024.0,0.1481782]
[1722039989051,0.4539044,68025.0,68024.0,0.1481782]
[1722039990066,0.2539044,68025.0,68024.0,0.2951842]
[1722039990671,0.25376758,68025.0,68024.0,0.2951842]
[1722039991133,0.06088342,68025.0,68024.0,1.03346977]
[1722039991339,0.08395384,68025.0,68024.0,0.73790257]
[1722039991539,0.08395384,68025.0,68024.0,0.73945677]
[1722039991684,0.06088342,68025.0,68024.0,0.73790257]
[1722039992283,0.03307106,68025.0,68024.0,0.2951842]
[1722039992469,0.03307106,68025.0,68024.0,0.1481782]
[1722039992675,0.18007506,68025.0,68024.0,0.1481782]
[1722039993060,0.19888742,68025.0,68024.0,0.1481782]
[1722039993262,0.05188342,68025.0,68024.0,0.1481782]
[1722039993439,0.57969642,68025.0,68024.0,0.1631782]
[1722039993656,0.57969642,68025.0,68024.0,0.161624]
[1722039993657,0.96648984,68025.0,68024.0,0.161624]
[1722039994021,0.9664931,68025.0,68024.0,0.1631782]
[1722039994235,0.6724841,68025.0,68024.0,0.1631782]
[1722039994430,0.67248394,68025.0,68024.0,0.1631782]
[1722039994681,0.67248394,68025.0,68024.0,0.161624]
[1722039994886,0.69555407,68025.0,68024.0,0.161624]
[1722039995080,0.69555407,68025.0,68024.0,0.1631782]